{"text_format":"3","workbook":"xlsx","n_sheets":2,"sheets":["INIZIO","SCHEDA ATTIVITÀ ANNUALE"],"not_rendered":{"defined_names":2},"read":"whole","date_system":"1900"}

{"sheet":"INIZIO","index":0,"n_rows":8,"n_cols":2,"rows_kept":8}
[null,"INFORMAZIONI SU QUESTO MODELLO"]
[null,"Tenere traccia delle ore giornaliere, settimanali, mensili e annuali in questa dipendente scheda attività."]
[null,"Immettere le informazioni di base come nome del dipendente, nome del manager, indirizzo di posta elettronica e numero di telefono. "]
[null,"Aggiungere le ore a ciascuna tabella del mese. Registrare le ore normali e le ore di straordinario in colonne diverse per ogni giorno della settimana di ciascuna settimana. "]
[null,"Le ore di lavoro totali, le ore normali e le ore di straordinario vengono calcolate automaticamente. "]
[null,"Note:"]
[null,"Altre istruzioni sono state fornite nella colonna A nel foglio di lavoro SCHEDA ATTIVITÀ ANNUALE. Questo testo è stato nascosto intenzionalmente. Per rimuovere il testo, selezionare la colonna A, quindi scegliere ELIMINA. Per visualizzare il testo, selezionare la colonna A, quindi modificare il colore del carattere. "]
[null,"Per ulteriori informazioni sulle tabelle, premere MAIUSC, quindi F10 in una tabella, selezionare l'opzione TABELLA, quindi selezionare TESTO ALTERNATIVO."]

{"sheet":"SCHEDA ATTIVITÀ ANNUALE","index":1,"n_rows":132,"n_cols":15,"rows_kept":132,"merged":[[0,1,0,2],[0,4,0,14],[10,6,10,7],[21,6,21,7],[32,6,32,7],[33,4,33,14],[43,6,43,7],[54,6,54,7],[65,6,65,7],[66,4,66,14],[76,6,76,7],[87,6,87,7],[98,6,98,7],[99,4,99,14],[109,6,109,7],[120,6,120,7],[131,6,131,7]]}
["In questo foglio di lavoro, creare una scheda attività del dipendente giornaliera, settimanale, mensile o annuale. \nIstruzioni utili per l'uso di questa cartella di lavoro si trovano nelle celle di questa colonna. Freccia verso il basso per iniziare.\nIl titolo del foglio di lavoro si trova nella cella a destra e l’intestazione del trimestre gennaio, febbraio e marzo si trova nella cella E1.","DIPENDENTE \nSCHEDA ATTIVITÀ",null,null,"Gennaio, febbraio, marzo    Dipendente scheda attività: Giornaliera, settimanale, mensile, annuale"]
["Immettere il nome del dipendente nella cella C2 e le ore normali e di straordinario nella tabella Gennaio partendo dalla cella E2.","Nome del dipendente:",null,null,"Gennaio","Settimana 1","Straordinario","Settimana 2","Straordinario  ","Settimana 3","Straordinario   ","Settimana 4","Straordinario    ","Settimana 5","Straordinario     "]
["Immettere il nome del manager nella cella C3.","Manager:",null,null,"Lunedì",{"v":8,"d":"8.0"}]
["Immettere l'indirizzo di posta elettronica nella cella C4.","Posta elettronica:",null,null,"Martedì",{"v":8,"d":"8.0"},{"v":2,"d":"2.0"}]
["Immettere il numero di telefono nella cella C5. L'istruzione successiva si trova nella cella A9.","Telefono:",null,null,"Mercoledì"]
[{"$nulls":4},"Giovedì"]
[{"$nulls":4},"Venerdì"]
[{"$nulls":4},"Sabato"]
["Il totale delle ore normali annuali viene calcolato automaticamente nella cella C9.","Ore normali:",{"$f":"RegularHrs","v":31},null,"Domenica"]
["Il totale delle ore di straordinario annuali viene calcolato automaticamente nella cella C10.","Ore di straordinario:",{"$f":"Overtime_hrs","v":4},null,"Totale ore settimanali",{"$f":"SUM(F3:F9)","v":{"v":16,"d":"16.0"}},{"v":2,"d":"2.0"},{"v":0,"d":"0.0"},{"v":0,"d":"0.0"},{"v":0,"d":"0.0"},{"v":0,"d":"0.0"},{"v":0,"d":"0.0"},{"v":0,"d":"0.0"},{"v":0,"d":"0.0"},{"v":0,"d":"0.0"}]
["Il totale delle ore complessive annuali viene calcolato automaticamente nella cella C11. Il totale delle ore normali di gennaio nella cella F11 e il totale delle ore di straordinario di gennaio nella cella I11 vengono calcolati automaticamente. L’istruzione successiva si trova nella cella A13.","Totale",{"$f":"RegularHrs+Overtime_hrs","v":35},null,{"$f":"TEXT(DATEVALUE(Gennaio[[#Headers],[Gennaio]]&\"  \"&YEAR(TODAY())),\"mmm.\")&\" totale: Ore normali\"","v":"gen. totale: Ore normali"},{"$f":"SUM(Gennaio[Settimana 1],Gennaio[Settimana 2],Gennaio[Settimana 3],Gennaio[Settimana 4],Gennaio[Settimana 5])","v":{"v":16,"d":"16.0"}},{"$f":"TEXT(DATEVALUE(Gennaio[[#Headers],[Gennaio]]&\"  \"&YEAR(TODAY())),\"mmm.\")&\" totale: Straordinario\"","v":"gen. totale: Straordinario"},null,{"$f":"SUM(Gennaio[Straordinario],Gennaio[[Straordinario  ]],Gennaio[[Straordinario   ]],Gennaio[[Straordinario    ]],Gennaio[[Straordinario     ]])","v":{"v":2,"d":"2.0"}}]
[]
["Immettere le ore normali e le ore di straordinario nella tabella Febbraio partendo dalla cella E13. L'istruzione successiva si trova nella cella A22.",{"$nulls":3},"Febbraio","Settimana 1","Straordinario","Settimana 2","Straordinario  ","Settimana 3","Straordinario   ","Settimana 4","Straordinario    ","Settimana 5","Straordinario     "]
[{"$nulls":4},"Lunedì",{"v":8,"d":"8.0"}]
[{"$nulls":4},"Martedì",{"v":7,"d":"7.0"},{"v":2,"d":"2.0"}]
[{"$nulls":4},"Mercoledì"]
[{"$nulls":4},"Giovedì"]
[{"$nulls":4},"Venerdì"]
[{"$nulls":4},"Sabato"]
[{"$nulls":4},"Domenica"]
[{"$nulls":4},"Totale ore settimanali",{"$f":"SUM(F14:F20)","v":{"v":15,"d":"15.0"}},{"v":2,"d":"2.0"},{"v":0,"d":"0.0"},{"v":0,"d":"0.0"},{"v":0,"d":"0.0"},{"v":0,"d":"0.0"},{"v":0,"d":"0.0"},{"v":0,"d":"0.0"},{"v":0,"d":"0.0"},{"v":0,"d":"0.0"}]
["Il totale delle ore normali di febbraio nella cella F22 e il totale delle ore di straordinario di febbraio nella cella I22 vengono calcolati automaticamente. L'istruzione successiva si trova nella cella A24.",{"$nulls":3},{"$f":"TEXT(DATEVALUE(Febbraio[[#Headers],[Febbraio]]&\"  \"&YEAR(TODAY())),\"mmm.\")&\" totale: Ore normali\"","v":"feb. totale: Ore normali"},{"$f":"SUM(Febbraio[Settimana 1],Febbraio[Settimana 2],Febbraio[Settimana 3],Febbraio[Settimana 4],Febbraio[Settimana 5])","v":{"v":15,"d":"15.0"}},{"$f":"TEXT(DATEVALUE(Febbraio[[#Headers],[Febbraio]]&\" \"&YEAR(TODAY())),\"mmm.\")&\" totale: Straordinario\"","v":"feb. totale: Straordinario"},null,{"$f":"SUM(Febbraio[Straordinario],Febbraio[[Straordinario  ]],Febbraio[[Straordinario   ]],Febbraio[[Straordinario    ]],Febbraio[[Straordinario     ]])","v":{"v":2,"d":"2.0"}}]
[]
["Immettere le ore normali e le ore di straordinario nella tabella Marzo partendo dalla cella E24. L'istruzione successiva si trova nella cella A33.",{"$nulls":3},"Marzo","Settimana 1","Straordinario","Settimana 2","Straordinario ","Settimana 3","Straordinario  ","Settimana 4","Straordinario    ","Settimana 5","Straordinario     "]
[{"$nulls":4},"Lunedì"]
[{"$nulls":4},"Martedì"]
[{"$nulls":4},"Mercoledì"]
[{"$nulls":4},"Giovedì"]
[{"$nulls":4},"Venerdì"]
[{"$nulls":4},"Sabato"]
[{"$nulls":4},"Domenica"]
[{"$nulls":4},"Totale ore settimanali",{"$f":"SUM(F25:F31)","v":{"v":0,"d":"0.0"}},{"v":0,"d":"0.0"},{"v":0,"d":"0.0"},{"v":0,"d":"0.0"},{"v":0,"d":"0.0"},{"v":0,"d":"0.0"},{"v":0,"d":"0.0"},{"v":0,"d":"0.0"},{"v":0,"d":"0.0"},{"v":0,"d":"0.0"}]
["Il totale delle ore normali di marzo nella cella F33 e il totale delle ore di straordinario di marzo nella cella I33 vengono calcolati automaticamente.",{"$nulls":3},{"$f":"TEXT(DATEVALUE(Marzo[[#Headers],[Marzo]]&\" \"&YEAR(TODAY())),\"mmm.\")&\" totale: Ore normali\"","v":"mar. totale: Ore normali"},{"$f":"SUM(Marzo[Settimana 1],Marzo[Settimana 2],Marzo[Settimana 3],Marzo[Settimana 4],Marzo[Settimana 5])","v":{"v":0,"d":"0.0"}},{"$f":"TEXT(DATEVALUE(Marzo[[#Headers],[Marzo]]&\" \"&YEAR(TODAY())),\"mmm.\")&\" totale: Straordinario\"","v":"mar. totale: Straordinario"},null,{"$f":"SUM(Marzo[Straordinario],Marzo[[Straordinario ]],Marzo[[Straordinario  ]],Marzo[[Straordinario    ]],Marzo[[Straordinario     ]])","v":{"v":0,"d":"0.0"}}]
["L’intestazione del trimestre aprile, maggio, giugno si trova nella cella E34. ",{"$nulls":3},"Aprile, maggio, giugno       Scheda attività del dipendente: Giornaliera, settimanale, mensile, annuale"]
["Immettere le ore normali e le ore di straordinario di aprile nella tabella partendo dalla cella E35. L’istruzione successiva si trova nella cella A44.",{"$nulls":3},"Aprile","Settimana 1","Straordinario","Settimana 2","Straordinario  ","Settimana 3","Straordinario   ","Settimana 4","Straordinario    ","Settimana 5","Straordinario     "]
[{"$nulls":4},"Lunedì"]
[{"$nulls":4},"Martedì"]
[{"$nulls":4},"Mercoledì"]
[{"$nulls":4},"Giovedì"]
[{"$nulls":4},"Venerdì"]
[{"$nulls":4},"Sabato"]
[{"$nulls":4},"Domenica"]
[{"$nulls":4},"Totale ore settimanali",{"$f":"SUM(F36:F42)","v":{"v":0,"d":"0.0"}},{"v":0,"d":"0.0"},{"v":0,"d":"0.0"},{"v":0,"d":"0.0"},{"v":0,"d":"0.0"},{"v":0,"d":"0.0"},{"v":0,"d":"0.0"},{"v":0,"d":"0.0"},{"v":0,"d":"0.0"},{"v":0,"d":"0.0"}]
["Il totale delle ore normali di aprile nella cella F44 e il totale delle ore di straordinario di aprile nella cella I44 vengono calcolati automaticamente. L’istruzione successiva si trova nella cella A46.",{"$nulls":3},{"$f":"TEXT(DATEVALUE(Aprile[[#Headers],[Aprile]]&\" \"&YEAR(TODAY())),\"mmm.\")&\" totale: Ore normali\"","v":"apr. totale: Ore normali"},{"$f":"SUM(Aprile[Settimana 1],Aprile[Settimana 2],Aprile[Settimana 3],Aprile[Settimana 4],Aprile[Settimana 5])","v":{"v":0,"d":"0.0"}},{"$f":"TEXT(DATEVALUE(Aprile[[#Headers],[Aprile]]&\" \"&YEAR(TODAY())),\"mmm.\")&\" totale: Straordinario\"","v":"apr. totale: Straordinario"},null,{"$f":"SUM(Aprile[Straordinario],Aprile[[Straordinario  ]],Aprile[[Straordinario   ]],Aprile[[Straordinario    ]],Aprile[[Straordinario     ]])","v":{"v":0,"d":"0.0"}}]
[]
["Immettere le ore normali e le ore di straordinario di maggio nella tabella partendo dalla cella E46. L'istruzione successiva si trova nella cella A55.",{"$nulls":3},"Maggio","Settimana 1","Straordinario","Settimana 2","Straordinario  ","Settimana 3","Straordinario   ","Settimana 4","Straordinario    ","Settimana 5","Straordinario     "]
[{"$nulls":4},"Lunedì"]
[{"$nulls":4},"Martedì"]
[{"$nulls":4},"Mercoledì"]
[{"$nulls":4},"Giovedì"]
[{"$nulls":4},"Venerdì"]
[{"$nulls":4},"Sabato"]
[{"$nulls":4},"Domenica"]
[{"$nulls":4},"Totale ore settimanali",{"$f":"SUM(F47:F53)","v":{"v":0,"d":"0.0"}},{"v":0,"d":"0.0"},{"v":0,"d":"0.0"},{"v":0,"d":"0.0"},{"v":0,"d":"0.0"},{"v":0,"d":"0.0"},{"v":0,"d":"0.0"},{"v":0,"d":"0.0"},{"v":0,"d":"0.0"},{"v":0,"d":"0.0"}]
["Il totale delle ore normali di maggio nella cella F55 e il totale delle ore di straordinario di maggio nella cella I55 vengono calcolati automaticamente. L'istruzione successiva si trova nella cella A57.",{"$nulls":3},{"$f":"TEXT(DATEVALUE(Maggio[[#Headers],[Maggio]]&\" \"&YEAR(TODAY())),\"mmm.\")&\" totale: Ore normali\"","v":"mag. totale: Ore normali"},{"$f":"SUM(Maggio[Settimana 1],Maggio[Settimana 2],Maggio[Settimana 3],Maggio[Settimana 4],Maggio[Settimana 5])","v":{"v":0,"d":"0.0"}},{"$f":"TEXT(DATEVALUE(Maggio[[#Headers],[Maggio]]&\" \"&YEAR(TODAY())),\"mmm.\")&\" totale: Straordinario\"","v":"mag. totale: Straordinario"},null,{"$f":"SUM(Maggio[Straordinario],Maggio[[Straordinario  ]],Maggio[[Straordinario   ]],Maggio[[Straordinario    ]],Maggio[[Straordinario     ]])","v":{"v":0,"d":"0.0"}}]
[]
["Immettere le ore normali e le ore di straordinario di giugno nella tabella partendo dalla cella E57. L'istruzione successiva si trova nella cella A66.",{"$nulls":3},"Giugno","Settimana 1","Straordinario","Settimana 2","Straordinario  ","Settimana 3","Straordinario   ","Settimana 4","Straordinario    ","Settimana 5","Straordinario     "]
[{"$nulls":4},"Lunedì"]
[{"$nulls":4},"Martedì"]
[{"$nulls":4},"Mercoledì"]
[{"$nulls":4},"Giovedì"]
[{"$nulls":4},"Venerdì"]
[{"$nulls":4},"Sabato"]
[{"$nulls":4},"Domenica"]
[{"$nulls":4},"Totale ore settimanali",{"$f":"SUM(F58:F64)","v":{"v":0,"d":"0.0"}},{"v":0,"d":"0.0"},{"v":0,"d":"0.0"},{"v":0,"d":"0.0"},{"v":0,"d":"0.0"},{"v":0,"d":"0.0"},{"v":0,"d":"0.0"},{"v":0,"d":"0.0"},{"v":0,"d":"0.0"},{"v":0,"d":"0.0"}]
["Il totale delle ore normali di giugno nella cella F66 e il totale delle ore di straordinario di giugno nella cella I66 vengono calcolati automaticamente.",{"$nulls":3},{"$f":"TEXT(DATEVALUE(Giugno[[#Headers],[Giugno]]&\" \"&YEAR(TODAY())),\"mmm.\")&\" totale: Ore normali\"","v":"giu. totale: Ore normali"},{"$f":"SUM(Giugno[Settimana 1],Giugno[Settimana 2],Giugno[Settimana 3],Giugno[Settimana 4],Giugno[Settimana 5])","v":{"v":0,"d":"0.0"}},{"$f":"TEXT(DATEVALUE(Giugno[[#Headers],[Giugno]]&\" \"&YEAR(TODAY())),\"mmm.\")&\" totale: Straordinario\"","v":"giu. totale: Straordinario"},null,{"$f":"SUM(Giugno[Straordinario],Giugno[[Straordinario  ]],Giugno[[Straordinario   ]],Giugno[[Straordinario    ]],Giugno[[Straordinario     ]])","v":{"v":0,"d":"0.0"}}]
["L’intestazione del trimestre luglio, agosto e settembre si trova nella cella E67. ",{"$nulls":3},"Luglio, agosto, settembre     Scheda attività del dipendente: Giornaliera, settimanale, mensile, annuale"]
["Immettere le ore normali e le ore di straordinario di luglio nella tabella partendo dalla cella E68. L'istruzione successiva si trova nella cella A77.",{"$nulls":3},"Luglio","Settimana 1","Straordinario","Settimana 2","Straordinario ","Settimana 3","Straordinario  ","Settimana 4","Straordinario   ","Settimana 5","Straordinario     "]
[{"$nulls":4},"Lunedì"]
[{"$nulls":4},"Martedì"]
[{"$nulls":4},"Mercoledì"]
[{"$nulls":4},"Giovedì"]
[{"$nulls":4},"Venerdì"]
[{"$nulls":4},"Sabato"]
[{"$nulls":4},"Domenica"]
[{"$nulls":4},"Totale ore settimanali",{"$f":"SUM(F69:F75)","v":{"v":0,"d":"0.0"}},{"v":0,"d":"0.0"},{"v":0,"d":"0.0"},{"v":0,"d":"0.0"},{"v":0,"d":"0.0"},{"v":0,"d":"0.0"},{"v":0,"d":"0.0"},{"v":0,"d":"0.0"},{"v":0,"d":"0.0"},{"v":0,"d":"0.0"}]
["Il totale delle ore normali di luglio nella cella F77 e il totale delle ore di straordinario di luglio nella cella I77 vengono calcolati automaticamente. L'istruzione successiva si trova nella cella A79.",{"$nulls":3},{"$f":"TEXT(DATEVALUE(Luglio[[#Headers],[Luglio]]&\" \"&YEAR(TODAY())),\"mmm.\")&\" totale: Ore normali\"","v":"lug. totale: Ore normali"},{"$f":"SUM(Luglio[Settimana 1],Luglio[Settimana 2],Luglio[Settimana 3],Luglio[Settimana 4],Luglio[Settimana 5])","v":{"v":0,"d":"0.0"}},{"$f":"TEXT(DATEVALUE(Luglio[[#Headers],[Luglio]]&\" \"&YEAR(TODAY())),\"mmm.\")&\" totale: Straordinario\"","v":"lug. totale: Straordinario"},null,{"$f":"SUM(Luglio[Straordinario],Luglio[[Straordinario ]],Luglio[[Straordinario  ]],Luglio[[Straordinario   ]],Luglio[[Straordinario     ]])","v":{"v":0,"d":"0.0"}}]
[]
["Immettere le ore normali e le ore di straordinario di agosto nella tabella partendo dalla cella E79. L’istruzione successiva si trova nella cella A88.",{"$nulls":3},"Agosto","Settimana 1","Straordinario","Settimana 2","Straordinario ","Settimana 3","Straordinario   ","Settimana 4","Straordinario  ","Settimana 5","Straordinario    "]
[{"$nulls":4},"Lunedì"]
[{"$nulls":4},"Martedì"]
[{"$nulls":4},"Mercoledì"]
[{"$nulls":4},"Giovedì"]
[{"$nulls":4},"Venerdì"]
[{"$nulls":4},"Sabato"]
[{"$nulls":4},"Domenica"]
[{"$nulls":4},"Totale ore settimanali",{"$f":"SUBTOTAL(109,Agosto[Settimana 1])","v":{"v":0,"d":"0.0"}},{"$f":"SUBTOTAL(109,Agosto[Straordinario])","v":{"v":0,"d":"0.0"}},{"$f":"SUBTOTAL(109,Agosto[Settimana 2])","v":{"v":0,"d":"0.0"}},{"$f":"SUBTOTAL(109,Agosto[[Straordinario ]])","v":{"v":0,"d":"0.0"}},{"$f":"SUBTOTAL(109,Agosto[Settimana 3])","v":{"v":0,"d":"0.0"}},{"$f":"SUBTOTAL(109,Agosto[[Straordinario   ]])","v":{"v":0,"d":"0.0"}},{"$f":"SUBTOTAL(109,Agosto[Settimana 4])","v":{"v":0,"d":"0.0"}},{"$f":"SUBTOTAL(109,Agosto[[Straordinario  ]])","v":{"v":0,"d":"0.0"}},{"$f":"SUBTOTAL(109,Agosto[Settimana 5])","v":{"v":0,"d":"0.0"}},{"$f":"SUBTOTAL(109,Agosto[[Straordinario    ]])","v":{"v":0,"d":"0.0"}}]
["Il totale delle ore normali di agosto nella cella F88 e il totale delle ore di straordinario di agosto nella cella I88 vengono calcolati automaticamente. L'istruzione successiva si trova nella cella A90.",{"$nulls":3},{"$f":"TEXT(DATEVALUE(Agosto[[#Headers],[Agosto]]&\" \"&YEAR(TODAY())),\"mmm.\")&\" totale: Ore normali\"","v":"ago. totale: Ore normali"},{"$f":"SUM(Agosto[Settimana 1],Agosto[Settimana 2],Agosto[Settimana 3],Agosto[Settimana 4],Agosto[Settimana 5])","v":{"v":0,"d":"0.0"}},{"$f":"TEXT(DATEVALUE(Agosto[[#Headers],[Agosto]]&\" \"&YEAR(TODAY())),\"mmm.\")&\" totale Straordinario\"","v":"ago. totale Straordinario"},null,{"$f":"SUM(Agosto[Straordinario],Agosto[[Straordinario ]],Agosto[[Straordinario   ]],Agosto[[Straordinario  ]],Agosto[[Straordinario    ]])","v":{"v":0,"d":"0.0"}}]
[]
["Immettere le ore normali e le ore di straordinario di settembre nella tabella partendo dalla cella E90. L'istruzione successiva si trova nella cella A99.",{"$nulls":3},"Settembre","Settimana 1","Straordinario","Settimana 2","Straordinario ","Settimana 3","Straordinario  ","Settimana 4","Straordinario   ","Settimana 5","Straordinario    "]
[{"$nulls":4},"Lunedì"]
[{"$nulls":4},"Martedì"]
[{"$nulls":4},"Mercoledì"]
[{"$nulls":4},"Giovedì"]
[{"$nulls":4},"Venerdì"]
[{"$nulls":4},"Sabato"]
[{"$nulls":4},"Domenica"]
[{"$nulls":4},"Totale ore settimanali",{"$f":"SUBTOTAL(109,Settembre[Settimana 1])","v":{"v":0,"d":"0.0"}},{"$f":"SUBTOTAL(109,Settembre[Straordinario])","v":{"v":0,"d":"0.0"}},{"$f":"SUBTOTAL(109,Settembre[Settimana 2])","v":{"v":0,"d":"0.0"}},{"$f":"SUBTOTAL(109,Settembre[[Straordinario ]])","v":{"v":0,"d":"0.0"}},{"$f":"SUBTOTAL(109,Settembre[Settimana 3])","v":{"v":0,"d":"0.0"}},{"$f":"SUBTOTAL(109,Settembre[[Straordinario  ]])","v":{"v":0,"d":"0.0"}},{"$f":"SUBTOTAL(109,Settembre[Settimana 4])","v":{"v":0,"d":"0.0"}},{"$f":"SUBTOTAL(109,Settembre[[Straordinario   ]])","v":{"v":0,"d":"0.0"}},{"$f":"SUBTOTAL(109,Settembre[Settimana 5])","v":{"v":0,"d":"0.0"}},{"$f":"SUBTOTAL(109,Settembre[[Straordinario    ]])","v":{"v":0,"d":"0.0"}}]
["Il totale delle ore normali di settembre nella cella F99 e il totale delle ore di straordinario di settembre nella cella I99 vengono calcolati automaticamente.",{"$nulls":3},{"$f":"TEXT(DATEVALUE(Settembre[[#Headers],[Settembre]]&\" \"&YEAR(TODAY())),\"mmm.\")&\" totale: Ore normali\"","v":"set. totale: Ore normali"},{"$f":"SUM(Settembre[Settimana 1],Settembre[Settimana 2],Settembre[Settimana 3],Settembre[Settimana 4],Settembre[Settimana 5])","v":{"v":0,"d":"0.0"}},{"$f":"TEXT(DATEVALUE(Settembre[[#Headers],[Settembre]]&\" \"&YEAR(TODAY())),\"mmm.\")&\" totale: Straordinario\"","v":"set. totale: Straordinario"},null,{"$f":"SUM(Settembre[Straordinario],Settembre[[Straordinario ]],Settembre[[Straordinario  ]],Settembre[[Straordinario   ]],Settembre[[Straordinario    ]])","v":{"v":0,"d":"0.0"}}]
["L’intestazione del trimestre ottobre, novembre e dicembre si trova nella cella E100. ",{"$nulls":3},"Ottobre, novembre, dicembre      Scheda attività del dipendente: Giornaliera, settimanale, mensile, annuale"]
["Immettere le ore normali e le ore di straordinario di ottobre nella tabella partendo dalla cella E101. L’istruzione successiva si trova nella cella A110.",{"$nulls":3},"Ottobre","Settimana 1","Straordinario","Settimana 2","Straordinario ","Settimana 3","Straordinario  ","Settimana 4","Straordinario   ","Settimana 5","Straordinario    "]
[{"$nulls":4},"Lunedì"]
[{"$nulls":4},"Martedì"]
[{"$nulls":4},"Mercoledì"]
[{"$nulls":4},"Giovedì"]
[{"$nulls":4},"Venerdì"]
[{"$nulls":4},"Sabato"]
[{"$nulls":4},"Domenica"]
[{"$nulls":4},"Totale ore settimanali",{"$f":"SUBTOTAL(109,Ottobre[Settimana 1])","v":{"v":0,"d":"0.0"}},{"$f":"SUBTOTAL(109,Ottobre[Straordinario])","v":{"v":0,"d":"0.0"}},{"$f":"SUBTOTAL(109,Ottobre[Settimana 2])","v":{"v":0,"d":"0.0"}},{"$f":"SUBTOTAL(109,Ottobre[[Straordinario ]])","v":{"v":0,"d":"0.0"}},{"$f":"SUBTOTAL(109,Ottobre[Settimana 3])","v":{"v":0,"d":"0.0"}},{"$f":"SUBTOTAL(109,Ottobre[[Straordinario  ]])","v":{"v":0,"d":"0.0"}},{"$f":"SUBTOTAL(109,Ottobre[Settimana 4])","v":{"v":0,"d":"0.0"}},{"$f":"SUBTOTAL(109,Ottobre[[Straordinario   ]])","v":{"v":0,"d":"0.0"}},{"$f":"SUBTOTAL(109,Ottobre[Settimana 5])","v":{"v":0,"d":"0.0"}},{"$f":"SUBTOTAL(109,Ottobre[[Straordinario    ]])","v":{"v":0,"d":"0.0"}}]
["Il totale delle ore normali di ottobre nella cella F110 e il totale delle ore di straordinario di ottobre nella cella I110 vengono calcolati automaticamente. L’istruzione successiva si trova nella cella A112.",{"$nulls":3},{"$f":"TEXT(DATEVALUE(Ottobre[[#Headers],[Ottobre]]&\" \"&YEAR(TODAY())),\"mmm.\")&\" totale: Ore normali\"","v":"ott. totale: Ore normali"},{"$f":"SUM(Ottobre[Settimana 1],Ottobre[Settimana 2],Ottobre[Settimana 3],Ottobre[Settimana 4],Ottobre[Settimana 5])","v":{"v":0,"d":"0.0"}},{"$f":"TEXT(DATEVALUE(Ottobre[[#Headers],[Ottobre]]&\" \"&YEAR(TODAY())),\"mmm.\")&\" totale: Straordinario\"","v":"ott. totale: Straordinario"},null,{"$f":"SUM(Ottobre[Straordinario],Ottobre[[Straordinario ]],Ottobre[[Straordinario  ]],Ottobre[[Straordinario   ]],Ottobre[[Straordinario    ]])","v":{"v":0,"d":"0.0"}}]
[]
["Immettere le ore normali e le ore di straordinario di novembre nella tabella partendo dalla cella E112. L’istruzione successiva si trova nella cella A121.",{"$nulls":3},"Novembre","Settimana 1","Straordinario","Settimana 2","Straordinario ","Settimana 3","Straordinario  ","Settimana 4","Straordinario    ","Settimana 5","Straordinario     "]
[{"$nulls":4},"Lunedì"]
[{"$nulls":4},"Martedì"]
[{"$nulls":4},"Mercoledì"]
[{"$nulls":4},"Giovedì"]
[{"$nulls":4},"Venerdì"]
[{"$nulls":4},"Sabato"]
[{"$nulls":4},"Domenica"]
[{"$nulls":4},"Totale ore settimanali",{"$f":"SUBTOTAL(109,Novembre[Settimana 1])","v":{"v":0,"d":"0.0"}},{"$f":"SUBTOTAL(109,Novembre[Straordinario])","v":{"v":0,"d":"0.0"}},{"$f":"SUBTOTAL(109,Novembre[Settimana 2])","v":{"v":0,"d":"0.0"}},{"$f":"SUBTOTAL(109,Novembre[[Straordinario ]])","v":{"v":0,"d":"0.0"}},{"$f":"SUBTOTAL(109,Novembre[Settimana 3])","v":{"v":0,"d":"0.0"}},{"$f":"SUBTOTAL(109,Novembre[[Straordinario  ]])","v":{"v":0,"d":"0.0"}},{"$f":"SUBTOTAL(109,Novembre[Settimana 4])","v":{"v":0,"d":"0.0"}},{"$f":"SUBTOTAL(109,Novembre[[Straordinario    ]])","v":{"v":0,"d":"0.0"}},{"$f":"SUBTOTAL(109,Novembre[Settimana 5])","v":{"v":0,"d":"0.0"}},{"$f":"SUBTOTAL(109,Novembre[[Straordinario     ]])","v":{"v":0,"d":"0.0"}}]
["Il totale delle ore normali di novembre nella cella F121 e il totale delle ore di straordinario di novembre nella cella I121 vengono calcolati automaticamente. L’istruzione successiva si trova nella cella A123.",{"$nulls":3},{"$f":"TEXT(DATEVALUE(Novembre[[#Headers],[Novembre]]&\" \"&YEAR(TODAY())),\"mmm.\")&\" totale: Ore normali\"","v":"nov. totale: Ore normali"},{"$f":"SUM(Novembre[Settimana 1],Novembre[Settimana 2],Novembre[Settimana 3],Novembre[Settimana 4],Novembre[Settimana 5])","v":{"v":0,"d":"0.0"}},{"$f":"TEXT(DATEVALUE(Novembre[[#Headers],[Novembre]]&\" \"&YEAR(TODAY())),\"mmm.\")&\" totale: Straordinario\"","v":"nov. totale: Straordinario"},null,{"$f":"SUM(Novembre[Straordinario],Novembre[[Straordinario ]],Novembre[[Straordinario  ]],Novembre[[Straordinario    ]],Novembre[[Straordinario     ]])","v":{"v":0,"d":"0.0"}}]
[]
["Immettere le ore normali e le ore di straordinario di dicembre nella tabella partendo dalla cella E123. L’istruzione successiva si trova nella cella A132.",{"$nulls":3},"Dicembre","Settimana 1","Straordinario","Settimana 2","Straordinario ","Settimana 3","Straordinario  ","Settimana 4","Straordinario   ","Settimana 5","Straordinario    "]
[{"$nulls":4},"Lunedì"]
[{"$nulls":4},"Martedì"]
[{"$nulls":4},"Mercoledì"]
[{"$nulls":4},"Giovedì"]
[{"$nulls":4},"Venerdì"]
[{"$nulls":4},"Sabato"]
[{"$nulls":4},"Domenica"]
[{"$nulls":4},"Totale ore settimanali",{"$f":"SUBTOTAL(109,Dicembre[Settimana 1])","v":{"v":0,"d":"0.0"}},{"$f":"SUBTOTAL(109,Dicembre[Straordinario])","v":{"v":0,"d":"0.0"}},{"$f":"SUBTOTAL(109,Dicembre[Settimana 2])","v":{"v":0,"d":"0.0"}},{"$f":"SUBTOTAL(109,Dicembre[[Straordinario ]])","v":{"v":0,"d":"0.0"}},{"$f":"SUBTOTAL(109,Dicembre[Settimana 3])","v":{"v":0,"d":"0.0"}},{"$f":"SUBTOTAL(109,Dicembre[[Straordinario  ]])","v":{"v":0,"d":"0.0"}},{"$f":"SUBTOTAL(109,Dicembre[Settimana 4])","v":{"v":0,"d":"0.0"}},{"$f":"SUBTOTAL(109,Dicembre[[Straordinario   ]])","v":{"v":0,"d":"0.0"}},{"$f":"SUBTOTAL(109,Dicembre[Settimana 5])","v":{"v":0,"d":"0.0"}},{"$f":"SUBTOTAL(109,Dicembre[[Straordinario    ]])","v":{"v":0,"d":"0.0"}}]
["Il totale delle ore normali di dicembre nella cella F132 e il totale delle ore di straordinario di dicembre nella cella I132 vengono calcolati automaticamente.",{"$nulls":3},{"$f":"TEXT(DATEVALUE(Dicembre[[#Headers],[Dicembre]]&\" \"&YEAR(TODAY())),\"mmm.\")&\" totale: Ore normali\"","v":"dic. totale: Ore normali"},{"$f":"SUM(Dicembre[Settimana 1],Dicembre[Settimana 2],Dicembre[Settimana 3],Dicembre[Settimana 4],Dicembre[Settimana 5])","v":{"v":0,"d":"0.0"}},{"$f":"TEXT(DATEVALUE(Dicembre[[#Headers],[Dicembre]]&\" \"&YEAR(TODAY())),\"mmm.\")&\" totale: Straordinario\"","v":"dic. totale: Straordinario"},null,{"$f":"SUM(G124:G130,I124:I130,K124:K130,M124:M130,O124:O130)","v":{"v":0,"d":"0.0"}}]